[Event "Titled Tuesday Blitz May 16 Early 2023"]
[White "Bethke, Richard"]
[Black "Shimanov, Aleksandr"]
[WhiteFideId "12959243"]
[BlackFideId "4198603"]
[WhiteElo "2369"]
[BlackElo "2631"]
[Result "0-1"]
[Round "01"]
[TimeControl "180+2"]
[Date "2023.05.16"]
[WhiteClock "0:00:00"]
[BlackClock "0:00:33"]

1. e4 {[%clk 0:02:57]}  c6 {[%clk 0:02:58]} 2. Nf3 {[%clk 0:02:55]}  d5 {[%clk 0:02:58]} 3. Nc3 {[%clk 0:02:56]}  Bg4 {[%clk 0:02:56]} 4. h3 {[%clk 0:02:55]}  Bh5 {[%clk 0:02:57]} 5. exd5 {[%clk 0:02:50]}  cxd5 {[%clk 0:02:57]} 6. g4 {[%clk 0:02:48]}  Bg6 {[%clk 0:02:56]} 7. Ne5 {[%clk 0:02:49]}  Nc6 {[%clk 0:02:57]} 8. d4 {[%clk 0:02:45]}  e6 {[%clk 0:02:47]} 9. h4 {[%clk 0:02:40]}  f6 {[%clk 0:02:42]} 10. Nxg6 {[%clk 0:02:39]}  hxg6 {[%clk 0:02:42]} 11. Bd3 {[%clk 0:02:36]}  Kf7 {[%clk 0:02:35]} 12. Be3 {[%clk 0:02:29]}  Bb4 {[%clk 0:02:33]} 13. Qd2 {[%clk 0:02:26]}  Nge7 {[%clk 0:02:32]} 14. a3 {[%clk 0:02:23]}  Qa5 {[%clk 0:02:24]} 15. Ke2 {[%clk 0:02:13]}  Bxc3 {[%clk 0:02:19]} 16. Qxc3 {[%clk 0:02:14]}  Qxc3 {[%clk 0:02:19]} 17. bxc3 {[%clk 0:02:15]}  Na5 {[%clk 0:02:18]} 18. h5 {[%clk 0:02:10]}  gxh5 {[%clk 0:02:07]} 19. gxh5 {[%clk 0:02:09]}  Rac8 {[%clk 0:02:06]} 20. Bd2 {[%clk 0:02:03]}  Nc4 {[%clk 0:02:06]} 21. Rag1 {[%clk 0:01:47]}  Nxd2 {[%clk 0:01:40]} 22. Kxd2 {[%clk 0:01:48]}  f5 {[%clk 0:01:40]} 23. Rg3 {[%clk 0:01:17]}  Ng8 {[%clk 0:01:34]} 24. Rgh3 {[%clk 0:00:51]}  Rh6 {[%clk 0:01:30]} 25. Be2 {[%clk 0:00:47]}  Nf6 {[%clk 0:01:29]} 26. Bf3 {[%clk 0:00:46]}  Rc7 {[%clk 0:01:25]} 27. Rb1 {[%clk 0:00:42]}  Rh8 {[%clk 0:01:23]} 28. Rb3 {[%clk 0:00:39]}  Ne8 {[%clk 0:01:17]} 29. c4 {[%clk 0:00:29]}  Rxc4 {[%clk 0:01:11]} 30. Rxb7+ {[%clk 0:00:28]}  Rc7 {[%clk 0:01:12]} 31. Rb4 {[%clk 0:00:22]}  Nd6 {[%clk 0:01:11]} 32. c3 {[%clk 0:00:21]}  Nc4+ {[%clk 0:01:09]} 33. Kd3 {[%clk 0:00:20]}  Nxa3 {[%clk 0:01:08]} 34. Rh1 {[%clk 0:00:13]}  Nc4 {[%clk 0:01:06]} 35. Rhb1 {[%clk 0:00:13]}  Nd6 {[%clk 0:01:05]} 36. Ra4 {[%clk 0:00:11]}  Rhc8 {[%clk 0:01:04]} 37. Rb3 {[%clk 0:00:11]}  Nc4 {[%clk 0:00:54]} 38. Ra6 {[%clk 0:00:10]}  Nb6 {[%clk 0:00:51]} 39. Be2 {[%clk 0:00:06]}  Nc4 {[%clk 0:00:45]} 40. f4 {[%clk 0:00:05]}  Ke7 {[%clk 0:00:42]} 41. Bf3 {[%clk 0:00:03]}  Nd6 {[%clk 0:00:41]} 42. Rba3 {[%clk 0:00:03]}  Nb5 {[%clk 0:00:41]} 43. R3a5 {[%clk 0:00:02]}  Rxc3+ {[%clk 0:00:41]} 44. Ke2 {[%clk 0:00:03]}  Rb3 {[%clk 0:00:38]} 45. Kf2 {[%clk 0:00:03]}  Rc2+ {[%clk 0:00:38]} 46. Be2 {[%clk 0:00:03]}  Nxd4 {[%clk 0:00:34]} 47. Rxa7+ {[%clk 0:00:03]}  Kf6 {[%clk 0:00:35]} 48. Ra2 {[%clk 0:00:00]}  Rbb2 {[%clk 0:00:33]} 0-1


[Site "https://www.chess.com"]

[Event "Titled Tuesday Blitz May 16 Early 2023"]
[White "Khandelwal, Ankush"]
[Black "Moroni, Luca Jr"]
[WhiteFideId "413470"]
[BlackFideId "865834"]
[WhiteElo "2263"]
[BlackElo "2569"]
[Result "1-0"]
[Round "01"]
[TimeControl "180+2"]
[Date "2023.05.16"]
[WhiteClock "0:01:03"]
[BlackClock "0:00:00"]

1. e4 {[%clk 0:03:00]}  g6 {[%clk 0:01:38]} 2. d4 {[%clk 0:02:58]}  Bg7 {[%clk 0:01:39]} 3. Nc3 {[%clk 0:02:57]}  d6 {[%clk 0:01:39]} 4. Be3 {[%clk 0:02:35]}  Nf6 {[%clk 0:01:38]} 5. Qd2 {[%clk 0:02:31]}  O-O {[%clk 0:01:34]} 6. O-O-O {[%clk 0:02:27]}  c6 {[%clk 0:01:34]} 7. f3 {[%clk 0:02:24]}  Qa5 {[%clk 0:01:34]} 8. Kb1 {[%clk 0:02:11]}  e5 {[%clk 0:01:26]} 9. h4 {[%clk 0:02:08]}  b5 {[%clk 0:01:26]} 10. h5 {[%clk 0:02:06]}  b4 {[%clk 0:01:26]} 11. Nce2 {[%clk 0:01:58]}  Be6 {[%clk 0:01:21]} 12. Nc1 {[%clk 0:01:48]}  exd4 {[%clk 0:01:19]} 13. Bh6 {[%clk 0:01:44]}  c5 {[%clk 0:00:00]} 14. hxg6 {[%clk 0:01:03]} 1-0


[Site "https://www.chess.com"]

[Event "Titled Tuesday Blitz May 16 Early 2023"]
[White "Ladan, Nicholas"]
[Black "Kamsky, Gata"]
[WhiteFideId "30918855"]
[BlackFideId "2000024"]
[WhiteElo "2167"]
[BlackElo "2660"]
[Result "0-1"]
[Round "01"]
[TimeControl "180+2"]
[Date "2023.05.16"]
[WhiteClock "0:01:12"]
[BlackClock "0:00:58"]

1. d4 {[%clk 0:03:00]}  Nf6 {[%clk 0:02:59]} 2. Nf3 {[%clk 0:03:01]}  g6 {[%clk 0:02:56]} 3. Nbd2 {[%clk 0:03:01]}  d5 {[%clk 0:02:53]} 4. e3 {[%clk 0:03:01]}  Bg7 {[%clk 0:02:52]} 5. b4 {[%clk 0:03:01]}  O-O {[%clk 0:02:43]} 6. c4 {[%clk 0:03:00]}  Nc6 {[%clk 0:02:38]} 7. b5 {[%clk 0:02:59]}  Na5 {[%clk 0:02:37]} 8. c5 {[%clk 0:02:56]}  Nd7 {[%clk 0:02:30]} 9. a4 {[%clk 0:02:54]}  Nxc5 {[%clk 0:02:23]} 10. Ba3 {[%clk 0:02:43]}  Ne6 {[%clk 0:02:07]} 11. Bd3 {[%clk 0:02:39]}  c6 {[%clk 0:02:02]} 12. O-O {[%clk 0:02:38]}  b6 {[%clk 0:02:00]} 13. bxc6 {[%clk 0:02:34]}  Nxc6 {[%clk 0:02:00]} 14. Rc1 {[%clk 0:02:33]}  Bb7 {[%clk 0:01:59]} 15. Qe2 {[%clk 0:02:32]}  Rc8 {[%clk 0:01:55]} 16. Ba6 {[%clk 0:02:30]}  Qd7 {[%clk 0:01:53]} 17. Rc3 {[%clk 0:02:12]}  Bxa6 {[%clk 0:01:52]} 18. Qxa6 {[%clk 0:02:10]}  Nb8 {[%clk 0:01:50]} 19. Qd3 {[%clk 0:02:09]}  Rxc3 {[%clk 0:01:49]} 20. Qxc3 {[%clk 0:02:10]}  Rc8 {[%clk 0:01:49]} 21. Qb3 {[%clk 0:02:10]}  Nd8 {[%clk 0:01:44]} 22. Qb5 {[%clk 0:02:01]}  e6 {[%clk 0:01:27]} 23. Ne5 {[%clk 0:01:55]}  Qxb5 {[%clk 0:01:27]} 24. axb5 {[%clk 0:01:54]}  Nb7 {[%clk 0:01:14]} 25. Rc1 {[%clk 0:01:52]}  Rxc1+ {[%clk 0:01:10]} 26. Bxc1 {[%clk 0:01:53]}  a5 {[%clk 0:01:05]} 27. Ba3 {[%clk 0:01:45]}  Bf8 {[%clk 0:01:04]} 28. Nc6 {[%clk 0:01:27]}  Bxa3 {[%clk 0:01:01]} 29. Nxb8 {[%clk 0:01:26]}  Bb4 {[%clk 0:00:59]} 30. Nd7 {[%clk 0:01:20]}  Bxd2 {[%clk 0:00:58]} 31. Nxb6 {[%clk 0:01:12]}  Nd6 {[%clk 0:00:58]} 0-1


[Site "https://www.chess.com"]

[Event "Titled Tuesday Blitz May 16 Early 2023"]
[White "Chigaev, Maksim"]
[Black "Martins, Vinicius Tine"]
[WhiteFideId "4108116"]
[BlackFideId "2112884"]
[WhiteElo "2558"]
[BlackElo "2373"]
[Result "1-0"]
[Round "01"]
[TimeControl "180+2"]
[Date "2023.05.16"]
[WhiteClock "0:00:05"]
[BlackClock "0:00:10"]

1. Nf3 {[%clk 0:02:56]}  Nf6 {[%clk 0:02:58]} 2. c4 {[%clk 0:02:56]}  e6 {[%clk 0:02:55]} 3. g3 {[%clk 0:02:56]}  b6 {[%clk 0:02:55]} 4. Bg2 {[%clk 0:02:57]}  Bb7 {[%clk 0:02:56]} 5. O-O {[%clk 0:02:58]}  c5 {[%clk 0:02:55]} 6. Nc3 {[%clk 0:02:56]}  Be7 {[%clk 0:02:54]} 7. d4 {[%clk 0:02:56]}  cxd4 {[%clk 0:02:54]} 8. Qxd4 {[%clk 0:02:57]}  O-O {[%clk 0:02:51]} 9. Rd1 {[%clk 0:02:46]}  d6 {[%clk 0:02:37]} 10. Bg5 {[%clk 0:02:46]}  Qc8 {[%clk 0:02:15]} 11. Rac1 {[%clk 0:02:29]}  h6 {[%clk 0:02:10]} 12. Bxf6 {[%clk 0:02:15]}  Bxf6 {[%clk 0:02:08]} 13. Qxd6 {[%clk 0:02:16]}  Rd8 {[%clk 0:01:52]} 14. Qf4 {[%clk 0:02:14]}  Rxd1+ {[%clk 0:01:51]} 15. Rxd1 {[%clk 0:02:15]}  Bxc3 {[%clk 0:01:50]} 16. bxc3 {[%clk 0:02:13]}  Nd7 {[%clk 0:01:48]} 17. Ne5 {[%clk 0:01:58]}  Nxe5 {[%clk 0:01:46]} 18. Bxb7 {[%clk 0:01:57]}  Qxb7 {[%clk 0:01:44]} 19. Qxe5 {[%clk 0:01:58]}  Rc8 {[%clk 0:01:43]} 20. Rd4 {[%clk 0:01:58]}  Qc7 {[%clk 0:01:34]} 21. Qxc7 {[%clk 0:01:24]}  Rxc7 {[%clk 0:01:35]} 22. f4 {[%clk 0:01:24]}  f6 {[%clk 0:01:29]} 23. Kf2 {[%clk 0:01:24]}  Kf7 {[%clk 0:01:30]} 24. Ke3 {[%clk 0:01:21]}  Ke7 {[%clk 0:01:28]} 25. Kd3 {[%clk 0:01:22]}  Rc5 {[%clk 0:01:21]} 26. Kc2 {[%clk 0:01:22]}  e5 {[%clk 0:01:19]} 27. fxe5 {[%clk 0:01:08]}  Rxe5 {[%clk 0:01:19]} 28. e4 {[%clk 0:01:07]}  Ra5 {[%clk 0:01:17]} 29. Kb3 {[%clk 0:01:06]}  Rh5 {[%clk 0:01:12]} 30. h4 {[%clk 0:01:05]}  Re5 {[%clk 0:01:12]} 31. a4 {[%clk 0:01:02]}  Ke8 {[%clk 0:01:04]} 32. Kc2 {[%clk 0:00:43]}  Ke7 {[%clk 0:01:02]} 33. Kd3 {[%clk 0:00:37]}  Ra5 {[%clk 0:01:02]} 34. Rd5 {[%clk 0:00:38]}  Rxa4 {[%clk 0:01:02]} 35. c5 {[%clk 0:00:39]}  bxc5 {[%clk 0:00:55]} 36. Rxc5 {[%clk 0:00:39]}  Ra2 {[%clk 0:00:54]} 37. Rc7+ {[%clk 0:00:38]}  Kf8 {[%clk 0:00:54]} 38. c4 {[%clk 0:00:35]}  g5 {[%clk 0:00:45]} 39. h5 {[%clk 0:00:27]}  Ra3+ {[%clk 0:00:45]} 40. Kd4 {[%clk 0:00:27]}  Rxg3 {[%clk 0:00:45]} 41. Rxa7 {[%clk 0:00:27]}  Rg1 {[%clk 0:00:42]} 42. Kd5 {[%clk 0:00:27]}  Rd1+ {[%clk 0:00:40]} 43. Ke6 {[%clk 0:00:26]}  Rd4 {[%clk 0:00:36]} 44. Kxf6 {[%clk 0:00:15]}  Ke8 {[%clk 0:00:37]} 45. Re7+ {[%clk 0:00:12]}  Kd8 {[%clk 0:00:36]} 46. c5 {[%clk 0:00:13]}  g4 {[%clk 0:00:35]} 47. e5 {[%clk 0:00:06]}  Rc4 {[%clk 0:00:26]} 48. Rg7 {[%clk 0:00:06]}  Rxc5 {[%clk 0:00:20]} 49. Rg8+ {[%clk 0:00:06]}  Kd7 {[%clk 0:00:19]} 50. Rxg4 {[%clk 0:00:06]}  Rc6+ {[%clk 0:00:18]} 51. Kf7 {[%clk 0:00:06]}  Rc1 {[%clk 0:00:15]} 52. Rd4+ {[%clk 0:00:05]}  Kc7 {[%clk 0:00:15]} 53. e6 {[%clk 0:00:05]}  Rf1+ {[%clk 0:00:15]} 54. Kg6 {[%clk 0:00:05]}  Re1 {[%clk 0:00:15]} 55. Kf6 {[%clk 0:00:05]}  Rf1+ {[%clk 0:00:15]} 56. Ke7 {[%clk 0:00:04]}  Rf5 {[%clk 0:00:15]} 57. Rc4+ {[%clk 0:00:04]}  Kb7 {[%clk 0:00:14]} 58. Kd6 {[%clk 0:00:04]}  Rf1 {[%clk 0:00:10]} 59. e7 {[%clk 0:00:05]} 1-0


[Site "https://www.chess.com"]

[Event "Titled Tuesday Blitz May 16 Early 2023"]
[White "Onufrienko, Vladislav"]
[Black "Pichot, Alan"]
[WhiteFideId "13804332"]
[BlackFideId "110973"]
[WhiteElo "1814"]
[BlackElo "2573"]
[Result "0-1"]
[Round "01"]
[TimeControl "180+2"]
[Date "2023.05.16"]
[WhiteClock "0:00:02"]
[BlackClock "0:00:32"]

1. e4 {[%clk 0:02:47]}  c5 {[%clk 0:02:58]} 2. Nc3 {[%clk 0:02:45]}  d6 {[%clk 0:02:57]} 3. d4 {[%clk 0:02:44]}  cxd4 {[%clk 0:02:57]} 4. Qxd4 {[%clk 0:02:42]}  Nc6 {[%clk 0:02:58]} 5. Qd2 {[%clk 0:02:38]}  Nf6 {[%clk 0:02:52]} 6. b3 {[%clk 0:02:37]}  e6 {[%clk 0:02:29]} 7. Bb2 {[%clk 0:02:36]}  Be7 {[%clk 0:02:26]} 8. O-O-O {[%clk 0:02:37]}  O-O {[%clk 0:02:26]} 9. f3 {[%clk 0:02:36]}  a6 {[%clk 0:02:23]} 10. g4 {[%clk 0:02:33]}  b5 {[%clk 0:02:23]} 11. Kb1 {[%clk 0:02:32]}  Bb7 {[%clk 0:02:23]} 12. h4 {[%clk 0:02:29]}  Rc8 {[%clk 0:02:20]} 13. h5 {[%clk 0:02:25]}  h6 {[%clk 0:02:09]} 14. g5 {[%clk 0:02:23]}  hxg5 {[%clk 0:02:09]} 15. h6 {[%clk 0:02:22]}  g6 {[%clk 0:02:07]} 16. h7+ {[%clk 0:02:20]}  Kh8 {[%clk 0:02:05]} 17. Qxg5 {[%clk 0:02:14]}  e5 {[%clk 0:01:59]} 18. Qh6 {[%clk 0:01:55]}  Nd4 {[%clk 0:01:46]} 19. Bd3 {[%clk 0:01:50]}  Nh5 {[%clk 0:01:40]} 20. Rxh5 {[%clk 0:01:39]}  gxh5 {[%clk 0:01:40]} 21. Qxh5 {[%clk 0:01:38]}  Qe8 {[%clk 0:01:30]} 22. Nce2 {[%clk 0:01:33]}  Nxe2 {[%clk 0:01:21]} 23. Nxe2 {[%clk 0:01:31]}  f5 {[%clk 0:01:22]} 24. Qh3 {[%clk 0:01:24]}  fxe4 {[%clk 0:01:21]} 25. fxe4 {[%clk 0:01:24]}  Qf7 {[%clk 0:01:11]} 26. Ng3 {[%clk 0:01:17]}  Rcd8 {[%clk 0:00:55]} 27. Nf5 {[%clk 0:01:13]}  Bc8 {[%clk 0:00:51]} 28. Rg1 {[%clk 0:01:04]}  Bxf5 {[%clk 0:00:51]} 29. exf5 {[%clk 0:01:05]}  Bf6 {[%clk 0:00:50]} 30. Rg6 {[%clk 0:00:55]}  d5 {[%clk 0:00:49]} 31. Qh2 {[%clk 0:00:51]}  Rde8 {[%clk 0:00:49]} 32. Bc1 {[%clk 0:00:32]}  e4 {[%clk 0:00:46]} 33. Be2 {[%clk 0:00:31]}  Qe7 {[%clk 0:00:37]} 34. Qg2 {[%clk 0:00:16]}  Qe5 {[%clk 0:00:33]} 35. Rg8+ {[%clk 0:00:10]}  Rxg8 {[%clk 0:00:32]} 36. hxg8=Q+ {[%clk 0:00:09]}  Rxg8 {[%clk 0:00:33]} 37. Qh2+ {[%clk 0:00:02]}  Qxh2 {[%clk 0:00:32]} 0-1


[Site "https://www.chess.com"]

[Event "Titled Tuesday Blitz May 16 Early 2023"]
[White "Zherebukh, Yaroslav"]
[Black "Lorenzo De La Riva, Lazaro"]
[WhiteFideId "14116804"]
[BlackFideId "2268809"]
[WhiteElo "2531"]
[BlackElo "2294"]
[Result "1-0"]
[Round "01"]
[TimeControl "180+2"]
[Date "2023.05.16"]
[WhiteClock "0:00:22"]
[BlackClock "0:00:00"]

1. Nf3 {[%clk 0:03:00]}  Nf6 {[%clk 0:02:53]} 2. b3 {[%clk 0:03:00]}  d5 {[%clk 0:02:50]} 3. Bb2 {[%clk 0:03:00]}  e6 {[%clk 0:02:43]} 4. c4 {[%clk 0:03:00]}  Nbd7 {[%clk 0:02:37]} 5. g3 {[%clk 0:02:58]}  Be7 {[%clk 0:02:25]} 6. Bg2 {[%clk 0:02:58]}  O-O {[%clk 0:02:23]} 7. O-O {[%clk 0:02:58]}  c6 {[%clk 0:02:20]} 8. d3 {[%clk 0:02:54]}  a5 {[%clk 0:02:19]} 9. a3 {[%clk 0:02:49]}  b5 {[%clk 0:02:15]} 10. Nbd2 {[%clk 0:02:44]}  Bb7 {[%clk 0:02:08]} 11. Qc2 {[%clk 0:02:42]}  Qb6 {[%clk 0:02:05]} 12. e4 {[%clk 0:02:33]}  Rfc8 {[%clk 0:02:03]} 13. e5 {[%clk 0:02:28]}  Ne8 {[%clk 0:02:00]} 14. Bd4 {[%clk 0:01:24]}  c5 {[%clk 0:01:52]} 15. Bb2 {[%clk 0:01:21]}  a4 {[%clk 0:01:42]} 16. Rfb1 {[%clk 0:01:13]}  axb3 {[%clk 0:01:31]} 17. Qxb3 {[%clk 0:01:03]}  bxc4 {[%clk 0:01:20]} 18. dxc4 {[%clk 0:00:56]}  Qxb3 {[%clk 0:01:17]} 19. Nxb3 {[%clk 0:00:57]}  dxc4 {[%clk 0:01:17]} 20. Nbd2 {[%clk 0:00:57]}  Nb6 {[%clk 0:01:13]} 21. Bc1 {[%clk 0:00:47]}  Ra6 {[%clk 0:01:03]} 22. Nxc4 {[%clk 0:00:46]}  Bxf3 {[%clk 0:00:43]} 23. Nxb6 {[%clk 0:00:36]}  Rb8 {[%clk 0:00:43]} 24. Bxf3 {[%clk 0:00:34]}  Raxb6 {[%clk 0:00:43]} 25. Rxb6 {[%clk 0:00:34]}  Rxb6 {[%clk 0:00:44]} 26. a4 {[%clk 0:00:34]}  Nc7 {[%clk 0:00:42]} 27. a5 {[%clk 0:00:34]}  Ra6 {[%clk 0:00:41]} 28. Bb7 {[%clk 0:00:33]}  Ra7 {[%clk 0:00:40]} 29. a6 {[%clk 0:00:34]}  Kf8 {[%clk 0:00:37]} 30. Bd2 {[%clk 0:00:29]}  Nd5 {[%clk 0:00:34]} 31. Ba5 {[%clk 0:00:26]}  c4 {[%clk 0:00:22]} 32. Rc1 {[%clk 0:00:26]}  c3 {[%clk 0:00:17]} 33. Bxc3 {[%clk 0:00:25]}  Nxc3 {[%clk 0:00:13]} 34. Rxc3 {[%clk 0:00:26]}  Bb4 {[%clk 0:00:12]} 35. Rc7 {[%clk 0:00:20]}  g6 {[%clk 0:00:10]} 36. Kg2 {[%clk 0:00:20]}  Kg7 {[%clk 0:00:10]} 37. f4 {[%clk 0:00:20]}  h5 {[%clk 0:00:10]} 38. h3 {[%clk 0:00:20]}  Ba5 {[%clk 0:00:10]} 39. Rc8 {[%clk 0:00:20]}  Bd2 {[%clk 0:00:08]} 40. Kf3 {[%clk 0:00:20]}  Bb4 {[%clk 0:00:07]} 41. Ke4 {[%clk 0:00:21]}  Be7 {[%clk 0:00:07]} 42. g4 {[%clk 0:00:21]}  Ba3 {[%clk 0:00:08]} 43. gxh5 {[%clk 0:00:20]}  gxh5 {[%clk 0:00:08]} 44. f5 {[%clk 0:00:21]}  exf5+ {[%clk 0:00:08]} 45. Kxf5 {[%clk 0:00:22]}  h4 {[%clk 0:00:08]} 46. Rc7 {[%clk 0:00:22]}  Bc1 {[%clk 0:00:00]} 47. e6 {[%clk 0:00:22]} 1-0


[Site "https://www.chess.com"]

[Event "Titled Tuesday Blitz May 16 Early 2023"]
[White "Mrudul Dehankar"]
[Black "JeRoma71"]
[WhiteFideId "25096990"]
[WhiteElo "2139"]
[BlackElo "2844"]
[Result "0-1"]
[Round "01"]
[TimeControl "180+2"]
[Date "2023.05.16"]
[WhiteClock "0:00:00"]
[BlackClock "0:01:07"]

1. e4 {[%clk 0:02:57]}  e6 {[%clk 0:02:59]} 2. d4 {[%clk 0:02:56]}  d5 {[%clk 0:03:00]} 3. e5 {[%clk 0:02:57]}  c5 {[%clk 0:03:00]} 4. c3 {[%clk 0:02:57]}  Nc6 {[%clk 0:03:01]} 5. Nf3 {[%clk 0:02:57]}  Bd7 {[%clk 0:03:01]} 6. Bd3 {[%clk 0:02:57]}  Qb6 {[%clk 0:03:01]} 7. O-O {[%clk 0:02:57]}  cxd4 {[%clk 0:03:01]} 8. Re1 {[%clk 0:02:57]}  Nge7 {[%clk 0:03:02]} 9. h4 {[%clk 0:02:56]}  Nf5 {[%clk 0:03:02]} 10. Bxf5 {[%clk 0:01:20]}  exf5 {[%clk 0:03:03]} 11. cxd4 {[%clk 0:01:20]}  Be6 {[%clk 0:03:03]} 12. Nc3 {[%clk 0:01:16]}  h6 {[%clk 0:03:03]} 13. Na4 {[%clk 0:01:08]}  Qb5 {[%clk 0:02:58]} 14. Nc3 {[%clk 0:01:07]}  Qa6 {[%clk 0:02:57]} 15. a4 {[%clk 0:01:00]}  Be7 {[%clk 0:02:56]} 16. Nb5 {[%clk 0:00:56]}  Rc8 {[%clk 0:02:54]} 17. Bd2 {[%clk 0:00:49]}  O-O {[%clk 0:02:54]} 18. Bf4 {[%clk 0:00:34]}  Nb4 {[%clk 0:02:52]} 19. Re2 {[%clk 0:00:32]}  Rc6 {[%clk 0:02:44]} 20. g3 {[%clk 0:00:18]}  Rfc8 {[%clk 0:02:37]} 21. Ne1 {[%clk 0:00:18]}  Qb6 {[%clk 0:02:29]} 22. Nd6 {[%clk 0:00:09]}  Rd8 {[%clk 0:02:28]} 23. Nb5 {[%clk 0:00:09]}  a6 {[%clk 0:02:27]} 24. Nd6 {[%clk 0:00:08]}  Rc7 {[%clk 0:02:14]} 25. Rc1 {[%clk 0:00:08]}  Rxc1 {[%clk 0:02:11]} 26. Qxc1 {[%clk 0:00:08]}  Nc6 {[%clk 0:02:08]} 27. Qc5 {[%clk 0:00:04]}  Qb4 {[%clk 0:01:40]} 28. Qxb4 {[%clk 0:00:03]}  Nxb4 {[%clk 0:01:41]} 29. Rd2 {[%clk 0:00:02]}  g5 {[%clk 0:01:41]} 30. hxg5 {[%clk 0:00:02]}  hxg5 {[%clk 0:01:42]} 31. Be3 {[%clk 0:00:03]}  b6 {[%clk 0:01:39]} 32. Nd3 {[%clk 0:00:03]}  a5 {[%clk 0:01:34]} 33. Nxb4 {[%clk 0:00:03]}  axb4 {[%clk 0:01:35]} 34. Rd3 {[%clk 0:00:03]}  Ra8 {[%clk 0:01:34]} 35. Rb3 {[%clk 0:00:03]}  Rxa4 {[%clk 0:01:34]} 36. Kg2 {[%clk 0:00:04]}  Kg7 {[%clk 0:01:33]} 37. Bd2 {[%clk 0:00:04]}  Kg6 {[%clk 0:01:22]} 38. Rxb4 {[%clk 0:00:03]}  Ra6 {[%clk 0:01:23]} 39. Rb3 {[%clk 0:00:04]}  Bd8 {[%clk 0:01:17]} 40. Nb5 {[%clk 0:00:04]}  Ra4 {[%clk 0:01:14]} 41. Nc3 {[%clk 0:00:04]}  Rxd4 {[%clk 0:01:13]} 42. Be3 {[%clk 0:00:04]}  Rd3 {[%clk 0:01:08]} 43. Bxb6 {[%clk 0:00:00]}  d4 {[%clk 0:01:07]} 0-1


[Site "https://www.chess.com"]

[Event "Titled Tuesday Blitz May 16 Early 2023"]
[White "Bharath Subramaniyam H"]
[Black "Balla, Tamas-Kristof"]
[WhiteFideId "46634827"]
[BlackFideId "1208497"]
[WhiteElo "2400"]
[BlackElo "2334"]
[Result "1-0"]
[Round "01"]
[TimeControl "180+2"]
[Date "2023.05.16"]
[WhiteClock "0:00:13"]
[BlackClock "0:00:00"]

1. c4 {[%clk 0:02:58]}  c5 {[%clk 0:02:55]} 2. Nf3 {[%clk 0:02:57]}  Nc6 {[%clk 0:02:55]} 3. Nc3 {[%clk 0:02:58]}  g6 {[%clk 0:02:53]} 4. e3 {[%clk 0:02:57]}  Nf6 {[%clk 0:02:48]} 5. d4 {[%clk 0:02:57]}  cxd4 {[%clk 0:02:47]} 6. exd4 {[%clk 0:02:57]}  d5 {[%clk 0:02:46]} 7. cxd5 {[%clk 0:02:33]}  Nxd5 {[%clk 0:02:45]} 8. Qb3 {[%clk 0:02:32]}  Nxc3 {[%clk 0:02:42]} 9. Bc4 {[%clk 0:02:22]}  e6 {[%clk 0:02:41]} 10. bxc3 {[%clk 0:02:21]}  Bd7 {[%clk 0:02:34]} 11. Bd3 {[%clk 0:02:03]}  Na5 {[%clk 0:02:29]} 12. Qc2 {[%clk 0:02:01]}  Bg7 {[%clk 0:02:29]} 13. Ba3 {[%clk 0:02:00]}  Bf8 {[%clk 0:02:25]} 14. Bxf8 {[%clk 0:01:51]}  Kxf8 {[%clk 0:02:24]} 15. h4 {[%clk 0:01:44]}  h5 {[%clk 0:01:59]} 16. O-O {[%clk 0:01:42]}  Rc8 {[%clk 0:01:52]} 17. Rac1 {[%clk 0:01:32]}  b5 {[%clk 0:01:45]} 18. Ne5 {[%clk 0:01:30]}  Be8 {[%clk 0:01:45]} 19. Qe2 {[%clk 0:01:27]}  a6 {[%clk 0:01:24]} 20. g3 {[%clk 0:01:14]}  Kg7 {[%clk 0:01:24]} 21. a4 {[%clk 0:01:12]}  Nb3 {[%clk 0:01:18]} 22. Rc2 {[%clk 0:01:05]}  bxa4 {[%clk 0:01:16]} 23. Bxa6 {[%clk 0:01:05]}  Rc7 {[%clk 0:01:14]} 24. Bc4 {[%clk 0:01:00]}  Na5 {[%clk 0:01:08]} 25. Bd3 {[%clk 0:00:57]}  Qf6 {[%clk 0:01:03]} 26. Ra1 {[%clk 0:00:47]}  Nb3 {[%clk 0:01:03]} 27. Raa2 {[%clk 0:00:45]}  g5 {[%clk 0:00:53]} 28. hxg5 {[%clk 0:00:43]}  Qxg5 {[%clk 0:00:53]} 29. Nf3 {[%clk 0:00:35]}  Qf6 {[%clk 0:00:49]} 30. Qe5 {[%clk 0:00:29]}  Qxe5 {[%clk 0:00:43]} 31. Nxe5 {[%clk 0:00:30]}  f6 {[%clk 0:00:43]} 32. Nc4 {[%clk 0:00:20]}  Bb5 {[%clk 0:00:40]} 33. Nb2 {[%clk 0:00:21]}  Bxd3 {[%clk 0:00:25]} 34. Nxd3 {[%clk 0:00:21]}  Ra8 {[%clk 0:00:24]} 35. Nf4 {[%clk 0:00:20]}  Kf7 {[%clk 0:00:22]} 36. Nxh5 {[%clk 0:00:21]}  Rac8 {[%clk 0:00:17]} 37. Rxa4 {[%clk 0:00:19]}  Rxc3 {[%clk 0:00:17]} 38. Rxc3 {[%clk 0:00:19]}  Rxc3 {[%clk 0:00:18]} 39. Nf4 {[%clk 0:00:20]}  e5 {[%clk 0:00:17]} 40. Ra7+ {[%clk 0:00:17]}  Kg8 {[%clk 0:00:14]} 41. dxe5 {[%clk 0:00:18]}  fxe5 {[%clk 0:00:14]} 42. Ng6 {[%clk 0:00:18]}  e4 {[%clk 0:00:13]} 43. Re7 {[%clk 0:00:19]}  Nd2 {[%clk 0:00:12]} 44. Kg2 {[%clk 0:00:19]}  Rc1 {[%clk 0:00:11]} 45. Nf4 {[%clk 0:00:19]}  Re1 {[%clk 0:00:10]} 46. Nd5 {[%clk 0:00:17]}  Kf8 {[%clk 0:00:09]} 47. Re5 {[%clk 0:00:17]}  Nf3 {[%clk 0:00:08]} 48. Rf5+ {[%clk 0:00:16]}  Kg7 {[%clk 0:00:08]} 49. Nc3 {[%clk 0:00:14]}  Nd2 {[%clk 0:00:00]} 50. Re5 {[%clk 0:00:13]} 1-0


[Site "https://www.chess.com"]

[Event "Titled Tuesday Blitz May 16 Early 2023"]
[White "Jimenez Almeida, Luis David"]
[Black "Rodshtein, Maxim"]
[WhiteFideId "22242244"]
[BlackFideId "2806851"]
[WhiteElo "2245"]
[BlackElo "2555"]
[Result "0-1"]
[Round "01"]
[TimeControl "180+2"]
[Date "2023.05.16"]
[WhiteClock "0:00:35"]
[BlackClock "0:01:25"]

1. e4 {[%clk 0:02:59]}  e6 {[%clk 0:02:59]} 2. d4 {[%clk 0:02:58]}  d5 {[%clk 0:02:59]} 3. e5 {[%clk 0:02:58]}  c5 {[%clk 0:02:59]} 4. c3 {[%clk 0:02:58]}  Nc6 {[%clk 0:02:59]} 5. Nf3 {[%clk 0:02:59]}  Bd7 {[%clk 0:02:59]} 6. Be2 {[%clk 0:02:56]}  Nge7 {[%clk 0:02:57]} 7. Na3 {[%clk 0:02:55]}  Ng6 {[%clk 0:02:54]} 8. Nc2 {[%clk 0:02:54]}  Be7 {[%clk 0:02:53]} 9. O-O {[%clk 0:02:51]}  O-O {[%clk 0:02:52]} 10. a3 {[%clk 0:02:48]}  Rc8 {[%clk 0:02:49]} 11. b4 {[%clk 0:02:47]}  cxd4 {[%clk 0:02:49]} 12. cxd4 {[%clk 0:02:48]}  f6 {[%clk 0:02:48]} 13. Bb2 {[%clk 0:02:44]}  Nf4 {[%clk 0:02:46]} 14. Re1 {[%clk 0:02:37]}  fxe5 {[%clk 0:02:44]} 15. dxe5 {[%clk 0:02:30]}  Qe8 {[%clk 0:02:25]} 16. Bf1 {[%clk 0:02:07]}  Qh5 {[%clk 0:02:24]} 17. Nfd4 {[%clk 0:02:01]}  Qh6 {[%clk 0:01:59]} 18. Nxc6 {[%clk 0:01:51]}  bxc6 {[%clk 0:01:48]} 19. Bd4 {[%clk 0:01:43]}  a5 {[%clk 0:01:45]} 20. bxa5 {[%clk 0:01:40]}  c5 {[%clk 0:01:45]} 21. Be3 {[%clk 0:01:39]}  d4 {[%clk 0:01:44]} 22. Bd2 {[%clk 0:01:23]}  Bc6 {[%clk 0:01:43]} 23. Qg4 {[%clk 0:01:17]}  Rf5 {[%clk 0:01:30]} 24. g3 {[%clk 0:01:10]}  Nh3+ {[%clk 0:01:27]} 25. Bxh3 {[%clk 0:01:08]}  Qxd2 {[%clk 0:01:28]} 26. Qe2 {[%clk 0:01:02]}  Qxe2 {[%clk 0:01:26]} 27. Rxe2 {[%clk 0:01:03]}  d3 {[%clk 0:01:26]} 28. Bxf5 {[%clk 0:01:03]}  exf5 {[%clk 0:01:26]} 29. Rd2 {[%clk 0:00:58]}  dxc2 {[%clk 0:01:26]} 30. Rxc2 {[%clk 0:00:59]}  Ra8 {[%clk 0:01:26]} 31. Rb1 {[%clk 0:00:35]}  Be4 {[%clk 0:01:25]} 0-1


[Site "https://www.chess.com"]